Cogmind - Beta 13 @@@ ROGUE MODE // 2024.05.11 @ 19:11:14 Player: Cherman0 Result: Destroyed by D-53 Grenadier with Mini Grenade Launcher Performance ------------- Evolutions (0) 0 Regions Visited (2) 400 Robots Destroyed (21) 105 Value Destroyed (499) 499 Prototype IDs (5) 100 Alien Tech Used (0) 0 Bonus (0) 0 TOTAL SCORE: 1104 Bonus ------- None Cogmind --------- Core Integrity 0/250 Matter 237/300 Energy 160/160 System Corruption 0% Temperature Cool (71) Movement Treading (160) Location -10/Mines Parts ------- > --- POWER (1) -------- Light Nuclear Core > --- PROPULSION (2) --- Light Treads Light Treads > --- UTILITY (2) ------ Large Storage Unit Hardened Light Armor Plating > --- WEAPON (2) ------- Shotgun Shotgun > --- INVENTORY (15) --- Light Treads Light Treads Light Treads Light Treads Sensor Array Improved Terrain Scanner Hardened Light Armor Plating Hardened Light Armor Plating Hardened Light Armor Plating Mining Laser Maul Peak State ------------ > --- POWER ------------ Improved Ion Engine > --- PROPULSION ------- Light Treads Light Treads > --- UTILITY ---------- Large Storage Unit Hardened Light Armor Plating > --- WEAPON ----------- EM Shotgun EM Shotgun > --- INVENTORY -------- Light Nuclear Core Light Treads Light Treads Light Treads Light Treads Sensor Array Improved Terrain Scanner Hardened Light Armor Plating Hardened Light Armor Plating Hardened Light Armor Plating Shotgun Shotgun Mining Laser Maul [Rating: 13] Favorites ----------- Power Light Ion Engine Engine Light Ion Engine Power Core Light Nuclear Core Propulsion Light Treads Treads Light Treads Leg Aluminum Leg Utility Large Storage Unit Device Sensor Array Storage Large Storage Unit Protection Hardened Light Armor Plating Weapon EM Shotgun Energy Gun EM Shotgun Ballistic Gun Assault Rifle Impact Weapon Maul Build | -11 -10 -10 ------- Run | Yrd Mat Min Slots Evolved . | . . . Power . | . . . Propulsion . | . . . Utility . | . . . Weapon . | . . . Parts Attached 27 | 5 16 6 Power 4 | . 2 2 Engine 3 | . 2 1 Core 1 | . . 1 Reactor . | . . . Propulsion 5 | 2 3 . Treads 5 | 2 3 . Leg . | . . . Wheel . | . . . Hover . | . . . Flight . | . . . Utility 7 | 2 3 2 Device 4 | 2 2 . Storage 1 | . 1 . Processor . | . . . Hackware . | . . . Protection 2 | . . 2 Artifact . | . . . Weapon 11 | 1 8 2 Energy Gun 5 | 1 4 . Energy Cannon . | . . . Ballistic Gun 4 | . 2 2 Ballistic Cannon . | . . . Launcher . | . . . Special Weapon . | . . . Impact Weapon 2 | . 2 . Slashing Weapon . | . . . Piercing Weapon . | . . . Special Melee Weapon . | . . . Unidentified Prototypes . | . . . Parts Lost 6 | . 3 3 Power 3 | . 2 1 Propulsion . | . . . Utility . | . . . Weapon 3 | . 1 2 Highest Loss Streak 3 | . 2 3 To Critical Strikes . | . . . Average Slot Usage (%) 99 | . 99 100 Engine 13 | . 13 13 Treads 28 | . 28 28 Device 13 | . 14 13 Storage 14 | . 14 14 Energy Gun 24 | . 22 27 Ballistic Gun 2 | . 3 . Impact Weapon 1 | . 1 . Naked Turns . | . . . Heaviest Build 34 | 13 30 34 Greatest Support 40 | 40 40 40 Greatest Overweight (x) . | . . . Average Overweight (x) . | . . . Largest Inventory Capacity 15 | 8 15 15 Average Capacity 14 | 8 14 15 Most Carried 15 | 6 15 15 Average Carried 11 | 2 11 14 Final Capacity 15 | 8 15 15 Final Carried 15 | 4 15 11 Class Distribution -------------------- 100% | Mutant Dominant Class ---------------- Mutant | -10/Materials Mutant | -10/Mines Resources | -11 -10 -10 ----------- Run | Yrd Mat Min Matter Collected 487 | 267 200 20 Remotely . | . . . Salvage Created 627 | 175 392 60 Parts 44 | 17 24 3 Haulers Intercepted . | . . . Recyclers Shooed 1 | 1 . . Parts Field Recycled . | . . . Retrieved Matter . | . . . Parts Self-Destructed . | . . . Prevented . | . . . Kills | -11 -10 -10 ------- Run | Yrd Mat Min Combat Hostiles Destroyed 13 | . 11 2 Melee 1 | . 1 . Guns 12 | . 10 2 Classes Destroyed 8 | 2 4 2 Tunneler 5 | 5 . . Recycler 1 | 1 . . Operator 1 | . 1 . Watcher 1 | . 1 . Swarmer 3 | . 3 . Grunt 8 | . 8 . Sentry 1 | . . 1 Demolisher 1 | . . 1 Best Kill Streak 4 | 4 3 1 Combat Bots Only 3 | . 3 1 Max Kills in Single Turn 1 | 1 1 1 Gunslinging . | . . . Exploded . | . . . Melee 1 | . 1 . Uniques/NPCs Destroyed . | . . . Combat | -11 -10 -10 -------- Run | Yrd Mat Min Hostile Shots Fired 91 | . 66 25 Missed 27 | . 25 2 Damage Taken 1294 | . 506 788 Core 259 | . 82 177 Absorbed by Shields . | . . . Core Remaining (%) 100 | 100 . . Volleys Fired 60 | 9 40 11 Largest 2 | 2 2 2 Hottest 90 | 70 90 90 Shots Fired 120 | 18 80 22 Gun 120 | 18 80 22 Cannon . | . . . Launcher . | . . . Special . | . . . Kinetic 40 | 9 24 7 Thermal 65 | 9 56 . Explosive . | . . . Electromagnetic 15 | . . 15 Robot Hit Streak 14 | 12 9 14 Robot Miss Streak 4 | 1 3 4 Penetration Max . | . . . Secondary Targets 2 | . 1 1 Max Gunslinging Chain 1 | . 1 1 Shots Hit Robots 90 | 13 59 18 Core Hits 36 | 7 22 7 Critical Kills . | . . . Critical Parts Destroyed . | . . . Critical Strikes 2 | . 2 . Burn 2 | . 2 . Melee Attacks 2 | . 2 . Impact 2 | . 2 . Slashing . | . . . Piercing . | . . . Sneak Attacks . | . . . Combat Hostiles . | . . . Follow-up Attacks . | . . . Damage Inflicted 1107 | 159 694 254 Guns 1099 | 159 686 254 Cannons . | . . . Explosions . | . . . Melee . | . . . Ramming 8 | . 8 . Kinetic 374 | 96 201 77 Thermal 548 | 63 485 . Explosive . | . . . Electromagnetic 177 | . . 177 Impact . | . . . Slashing . | . . . Piercing . | . . . Highest Corruption . | . . . Average Corruption . | . . . Corruption Purged . | . . . Corruption Blocked . | . . . Overload Shots . | . . . Overflow Damage . | . . . Projectiles . | . . . Explosions . | . . . Melee . | . . . Knockbacks . | . . . Impact . | . . . Kinetic . | . . . Secondary . | . . . Self-Inflicted Damage . | . . . Shots . | . . . Rammed 2 | . 2 . Targets Rammed 3 | . 3 . Kicked . | . . . Crushed 1 | . 1 . Highest Temperature 312 | 45 312 138 Average Temperature 79 | 21 93 69 Received Heat Transfer 288 | . 261 27 Effects 1 | . 1 . Energy Bleed 1 | . 1 . Siege Activations . | . . . Robots Corrupted . | . . . Combat Hostiles . | . . . Parts Fried 1 | . . 1 Impact Corruptions . | . . . Robots Melted . | . . . Combat Hostiles . | . . . Parts Melted 3 | . 3 . Heat Transferred 1682 | 185 1497 . Parts Sabotaged . | . . . Parts Stolen . | . . . Parts Stripped . | . . . Power Chain Reactions . | . . . Alert | -11 -10 -10 ------- Run | Yrd Mat Min Peak Influence 249 | 30 249 40 Initial 19 | . 19 5 Average 52 | 14 77 9 Maximum Alert Level 1 | . 1 . Low Security (%) 93 | 100 89 100 Level 1 6 | . 10 . Level 2 . | . . . Level 3 . | . . . Level 4 . | . . . Level 5 . | . . . High Security . | . . . Max Security . | . . . Squads Dispatched 2 | . 2 . Investigation 1 | . 1 . Extermination . | . . . Reinforcement 1 | . 1 . Assault . | . . . Garrison . | . . . Intercept . | . . . Searches Triggered . | . . . Construction Impeded . | . . . Haulers Reinforced . | . . . Active Scanning Responses . | . . . Cargo Convoy Interrupts . | . . . Stealth | -11 -10 -10 --------- Run | Yrd Mat Min Distress Signals 1 | . 1 . Communications Jammed . | . . . Distress Signals . | . . . Times Spotted 19 | . 16 3 Peak Tracking Total 4 | . 4 2 Tactical Retreats . | . . . Traps | -11 -10 -10 ------- Run | Yrd Mat Min Traps Triggered 1 | . 1 . Indirectly . | . . . Trap Hack Attempts . | . . . Triggered . | . . . Disarmed . | . . . Reprogrammed . | . . . Reused . | . . . Traps Extracted . | . . . Installed . | . . . Triggered . | . . . Machines | -11 -10 -10 ---------- Run | Yrd Mat Min Machines Disabled . | . . . Max in Single Turn . | . . . Machines Repaired . | . . . Machines Dismantled . | . . . Machines Sabotaged . | . . . Overloaded Fab Kills . | . . . Hacking | -11 -10 -10 --------- Run | Yrd Mat Min Machines Accessed 7 | . 7 . Terminals 6 | . 6 . Fabricators . | . . . Repair Stations 1 | . 1 . Recycling Units . | . . . Scanalyzers . | . . . Garrison Access . | . . . Total Hacks 15 | . 15 . Successful 9 | . 9 . Failed 6 | . 6 . Catastrophic 2 | . 2 . Database Lockouts . | . . . Manual 6 | . 6 . Terminals 13 | . 13 . Fabricators . | . . . Repair Stations 2 | . 2 . Recycling Units . | . . . Scanalyzers . | . . . Garrison Access . | . . . Terminal Hacks 8 | . 8 . Prototype ID Bank 3 | . 3 . Terminal Index 1 | . 1 . Locate Traps 2 | . 2 . Hauler Manifests 1 | . 1 . Zone Layout 1 | . 1 . Fabricator Hacks . | . . . Repair Station Hacks 1 | . 1 . Scan Component 1 | . 1 . Recycling Unit Hacks . | . . . Scanalyzer . | . . . Garrison Access Hacks . | . . . Unauthorized Hacks . | . . . Terminals . | . . . Fabricators . | . . . Repair Stations . | . . . Recycling Units . | . . . Scanalyzers . | . . . Garrison Access . | . . . Data Cores Recovered . | . . . Used . | . . . Hacking Detections 4 | . 4 . Full Trace Events . | . . . Feedback Events . | . . . Feedback Blocked . | . . . Robot Schematics Acquired . | . . . Robots Built . | . . . Authchips . | . . . Time . | . . . Total Robot Build Rating . | . . . Part Schematics Acquired . | . . . Parts Built . | . . . Authchips . | . . . Time . | . . . Total Part Build Rating . | . . . Parts Repaired . | . . . Time . | . . . Parts Recycled . | . . . Recycled Matter . | . . . Retrieved Matter . | . . . Retrieved Components . | . . . Parts Scanalyzed . | . . . Part Schematics Acquired . | . . . Parts Damaged . | . . . Bothacking | -11 -10 -10 ------------ Run | Yrd Mat Min Used RIF Installer . | . . . Robots Hacked . | . . . Non-combat . | . . . Combat . | . . . Robot Hacks Applied . | . . . Relay Couplers Released . | . . . Fabnet Peak Effective % . | . . . Robots Rewired . | . . . Allies Hacked . | . . . Hacks Repelled . | . . . Allies | -11 -10 -10 -------- Run | Yrd Mat Min Total Allies . | . . . Largest Group . | . . . Highest-Rated Group . | . . . Highest-Rated Ally . | . . . Total Orders . | . . . Ally Attacks . | . . . Total Damage . | . . . Kills . | . . . Allies Corrupted . | . . . Allies Melted . | . . . Intel | -11 -10 -10 ------- Run | Yrd Mat Min Robot Analysis Total . | . . . Derelict Logs Recovered 1 | . . 1 Drone Launches . | . . . Drone Recoveries . | . . . Exploration | -11 -10 -10 ------------- Run | Yrd Mat Min Turns Passed 1812 | 90 1146 576 Spaces Moved 932 | 20 585 327 Core . | . . . Treads 932 | 20 585 327 Legs . | . . . Wheels . | . . . Hover . | . . . Flight . | . . . Fastest Speed 160 | 160 160 160 Average Speed 160 | 160 160 160 Slowest Speed 160 | 160 160 160 Overloaded Moves . | . . . Propulsion Burnouts . | . . . Robots Hopped . | . . . Cave-ins Triggered . | . . . Exploration Rate (%) 55 | 3 97 67 Regions Visited 2 Branch Regions 1 Pre-discovered Areas . | . . . Known Exits Taken . | . . . Unknown Exits Taken 2 | 1 1 . Scrap Searched . | . . . Spaces Dug 2 | . 2 . Terrain Destroyed 2 | . 2 . Melee 2 | . 2 . Projectile . | . . . AOE . | . . . Terrain Rammed . | . . . Walls Destroyed . | . . . Machines Disabled . | . . . Actions | -11 -10 -10 --------- Run | Yrd Mat Min Total 1132 | 62 712 358 Wait 72 | 20 40 12 Move 930 | 19 584 327 Hop . | . . . Pick Up 20 | 3 17 . Fast Attach 3 | 1 2 . Attach 7 | 2 2 3 Detach . | . . . Swap 17 | 2 12 3 Drop 18 | 6 10 2 Fire 60 | 9 40 11 Melee 2 | . 2 . Ram . | . . . Kick . | . . . Crush 3 | . 3 . Escape Stasis . | . . . Rewire . | . . . Trap . | . . . Miscellaneous . | . . . Route ------- -11/Scrapyard -10/Materials (discovered 5 exits: [*Mat x3] / [*Min x2]) -10/Mines (discovered 2 exits: [*Mat x2]) History --------- Turn | Location | Event 19 | -11/Scrapyard | Discovered new exit (range 2) 91 | -11/Scrapyard | Entered Materials 300 | -10/Materials | Build established: Mutant 339 | -10/Materials | Discovered new exit (range 11) 513 | -10/Materials | Discovered new exit (range 11) 691 | -10/Materials | Discovered new exit (range 16) 1052 | -10/Materials | Discovered new exit (range 16) 1090 | -10/Materials | Discovered new exit (range 10) 1237 | -10/Materials | Entered Mines 1261 | -10/Mines | Learned Materials interactive machine intel 1290 | -10/Mines | Met a Derelict bent on vengeance 1485 | -10/Mines | Discovered new exit (range 5) 1497 | -10/Mines | Joined a pair of Derelicts in attacking an 0b10 outpost 1604 | -10/Mines | Discovered new exit (range 16) 1743 | -10/Mines | Assembled infested the area 1789 | -10/Mines | Core integrity fell below 50% 1806 | -10/Mines | Core integrity fell below 20% 1813 | -10/Mines | Destroyed by D-53 Grenadier with Mini Grenade Launcher Last Messages --------------- squad. 01785_ C-30 ARC bursts open, deploying its payload. 01785_ D-53 Grenadier unfolds itself. 01791_ The unstable cave ceiling collapses. 01796_ EM Shotgun destroyed. 01796_ D-53 Grenadier misfires. 01798_ The unstable cave ceiling collapses. 01798_ D-53 Grenadier IFF system glitched. 01799_ U-05 Engineer lays Concrete. 01800_ The unstable cave ceiling collapses. 01800_ D-53 Grenadier destroyed. 01800_ Switching to secondary target: D-53 Grenadier. 01801_ EM Shotgun destroyed. 01803_ The unstable cave ceiling collapses. 01804_ U-05 Engineer builds a Wall. 01805_ Imp. Ion Engine destroyed. 01807_ D-53 Grenadier misfires. 01808_ U-05 Engineer lays Concrete. 01808_ U-05 Engineer builds a Wall. 01812_ U-05 Engineer lays Concrete. Map ----- +----------------------------------------------------+ | ##????# #?## | | ####?????## ##??##### | | #?????????## ### ##???????## ####### | | #???#####??# ##?# #?#######?# ##?????? | | #??## ##?# #### #?# ### #??????? | | ##??# ### #?# < ##?????? | | ##??## ######?# ### ####### | | #?### #??????# #?## ##### # | | ?## ### #??????# #??####???## ###### | | ## ##?# #??????# #??????????####????### | | # #??# ######?#######????????????######### | | #??# #???????????????????##" ## | | #??###### ###?????????????????#"" !# | | ##???????# #?????????????????#!]*%/ | | ##????????# #?????????????????#!!*!/ | | #?????????### #?????????????????#""[=# | | #?????????## #??????????####???##"%## | | ##?????????# # #????????### ##???####### | | ####??????????# #u #???????## #??????###### | | ##?????????????# # ??????## ######## ##?? | | #??????????????? ####### g # #?? | | #????????????????# # !! #?? | | ##????????????????#% #### !! #?? | | #???????????????### ##??# ! ##? | | #???????????????# ##???# ! ## ## | | ??????????????# d @ ##????# #### | | ###????????????# #?? ##??## | | ??????????????# ## #????# | | ???????????? ### ???# | | ??????????? u## ##?## ?# | | ???????????# ## ####???## | | ???????????# ? ????????### # | | ##?????????# #### ?? ??????????### #? | | ##??????????????####??##????????????## ?? | | ##??????????????????????????????????## #?? | | #???????????????????????????????????## #??? | | #????????????????????????????????????## #???? | | #?????????????????????????????????????###????? | | ##????????????????????????????????????????????? | | ###??????????????????????????????????????????????? | | ?????????????????????????????????????????????????? | | ?????????????????????????????????????????????????? | | ?????????????????????????????????????????????????? | | ?????????????????????????????????????????????????? | | ?????????????????????????????????????????????????? | | ?????????????????????????????????????????????????? | | ??????????????????????????????????????????? | | ?????????????????????????????????????????? | | ##??????????????????????????????????????????? | | # ####???????????????????????????????????????????? | +----------------------------------------------------+ Best States ------------- Heat Dissipation 25 Energy Generation 14 Energy Capacity 265 Matter Stores 300 Matter Capacity 300 Sight Range 16 Robot Scan Range 14 Terrain Scan Density 10 Armor Coverage 150 Evasion (%) 40 Recoil Reduction 2 Item Schematics ----------------- None Robot Schematics ------------------ None Fabricated ------------ Nothing Alien Tech Used ----------------- None Achievements -------------- None Challenges ------------ None Game ------ Seed PulseLegMicroactuators Manual? 0 Play Time 00:15:13 Cumulative 93.2 hours Start 2024.05.11 @ 18:54:51 End 2024.05.11 @ 19:11:14 Sessions 1 Manual Loads 0 Difficulty Rogue Special Mode None Game No. 56 Rogue 56 Adventurer 0 Explorer 0 Win Type - Total 0 Types 0/0/0/0/0/0/0/0/0 Lore% 33 Gallery% 47 Achievement% 37 Wizard Run 0 Options --------- Layout 0 ASCII 0 Keyboard 0 Movement Numpad Keybinds 1 Fullscreen 1 Font 18/SmallcapsGlow Map View 76x50 Zoom Use 0% Tactical HUD 1 Map Filters NONE Filters NONE Steam 1 RUN: 03ab6f93-14f2-454a-8f71-c465ec61d210